bitfinex/quotes_BTCUSD_20240819
["timestamp","ask_amount","ask_price","bid_price","bid_amount"]
[1724046836879,2.0122605,58529.0,58528.0,0.00135432]
[1724046838123,2.0122605,58529.0,58528.0,0.00217632]
[1724046838929,2.01507966,58529.0,58528.0,0.00217632]
[1724046839574,2.05930728,58529.0,58528.0,0.00217632]
[1724046839778,1.54870941,58529.0,58528.0,0.00217632]
[1724046840500,1.27927168,58529.0,58528.0,0.00217632]
[1724046841100,1.55089681,58529.0,58528.0,0.00217632]
[1724046842549,1.35552334,58529.0,58528.0,0.00217632]
[1724046844080,0.9108084,58529.0,58528.0,0.00217632]
[1724046845030,0.84597468,58529.0,58528.0,0.00217632]
[1724046846075,0.83397468,58529.0,58528.0,0.00217632]
[1724046846224,1.07317168,58529.0,58528.0,0.00217632]
[1724046846443,0.83397468,58529.0,58528.0,0.00217632]
[1724046847269,0.76977468,58529.0,58528.0,0.00217632]
[1724046847684,0.78277468,58529.0,58528.0,0.00217632]
[1724046848863,0.610992,58529.0,58528.0,0.08007632]
[1724046849584,0.597992,58529.0,58528.0,0.08007632]
[1724046849980,0.601992,58529.0,58528.0,0.08007632]
[1724046850200,0.603992,58529.0,58528.0,0.08007632]
[1724046851019,0.362795,58529.0,58528.0,0.08007632]
[1724046851889,0.601992,58529.0,58528.0,0.08007632]
[1724046852090,0.362795,58529.0,58528.0,0.08007632]
[1724046852345,0.597992,58529.0,58528.0,0.08007632]
[1724046852699,0.598992,58529.0,58528.0,0.08007632]
[1724046852898,0.359795,58529.0,58528.0,0.08007632]
[1724046853883,0.120598,58529.0,58528.0,0.08007632]
[1724046854098,0.359795,58529.0,58528.0,0.08007632]
[1724046856190,0.001,58529.0,58528.0,0.21397632]
[1724046860849,0.001,58529.0,58528.0,0.45317732]
[1724046862302,0.00190421,58529.0,58528.0,0.45317732]
[1724046862822,0.00190421,58529.0,58528.0,0.45517732]
[1724046863026,0.00290421,58529.0,58528.0,0.45517732]
[1724046863249,0.00290421,58529.0,58528.0,0.69437832]
[1724046863447,0.00290421,58529.0,58528.0,0.78817832]
[1724046868324,0.00290421,58529.0,58528.0,0.69437832]
[1724046868730,0.00290421,58529.0,58528.0,0.69537832]
[1724046868860,0.00290421,58529.0,58528.0,0.69737832]
[1724046869053,0.00290421,58529.0,58528.0,1.02837932]
[1724046869252,0.00290421,58529.0,58528.0,1.02737932]
[1724046875466,0.00290421,58529.0,58528.0,0.78817832]
[1724046879863,0.00290421,58529.0,58528.0,0.77387832]
[1724046880268,0.00290421,58529.0,58528.0,0.68007832]
[1724046880676,0.00290421,58529.0,58528.0,0.60217832]
[1724046881676,0.00249292,58529.0,58528.0,0.60217832]
[1724046888335,0.00249292,58529.0,58528.0,0.77097832]
[1724046891193,0.00249292,58529.0,58528.0,1.19703386]
[1724046891717,0.00249292,58529.0,58528.0,1.19903386]
[1724046892105,0.00149292,58529.0,58528.0,1.10523386]
[1724046892316,0.00149292,58529.0,58528.0,1.19903386]
[1724046892534,0.00249292,58529.0,58528.0,1.20003386]
[1724046892703,0.00249292,58529.0,58528.0,1.20103386]
[1724046892906,0.00149292,58529.0,58528.0,1.20103386]
[1724046893106,0.00049292,58529.0,58528.0,1.19903386]
[1724046893307,0.00249292,58529.0,58528.0,1.20903386]
[1724046893665,0.00149292,58529.0,58528.0,1.19903386]
[1724046893916,0.00049292,58529.0,58528.0,1.19903386]
[1724046894359,0.00149292,58529.0,58528.0,1.20903386]
[1724046894566,0.00049292,58529.0,58528.0,1.19903386]
[1724046894783,0.00049292,58529.0,58528.0,1.20899972]
[1724046894954,0.00149292,58529.0,58528.0,1.12419972]
[1724046895160,0.00149292,58529.0,58528.0,1.11089972]
[1724046895357,0.00249292,58529.0,58528.0,1.12489972]
[1724046895757,0.00249292,58529.0,58528.0,1.12689972]
[1724046896367,0.00149292,58529.0,58528.0,1.11289972]
[1724046896816,0.00249292,58529.0,58528.0,1.12689972]
[1724046900251,0.00249292,58529.0,58528.0,1.14119972]
[1724046902307,0.00249292,58529.0,58528.0,1.14319972]
[1724046903906,0.00249292,58529.0,58528.0,1.12889972]
[1724046904154,0.00249292,58529.0,58528.0,1.12489972]
[1724046904572,0.00249292,58529.0,58528.0,1.12689972]
[1724046905900,0.00249292,58529.0,58528.0,1.12889972]
[1724046908881,0.00249292,58529.0,58528.0,1.38240072]
[1724046909263,0.00249292,58529.0,58528.0,1.48240072]
[1724046910597,0.00249292,58529.0,58528.0,1.24319972]
[1724046913374,0.00249292,58529.0,58528.0,1.48240072]
[1724046913875,0.00249292,58529.0,58528.0,1.24319972]
[1724046914700,0.00249292,58529.0,58528.0,1.22889972]
[1724046916224,0.00249292,58529.0,58528.0,1.46810072]
[1724046917078,0.00249292,58529.0,58528.0,1.22889972]
[1724046917485,0.00249292,58529.0,58528.0,1.24319972]
[1724046917763,0.00249292,58529.0,58528.0,1.48240072]
[1724046918555,0.00249292,58529.0,58528.0,1.72160172]
[1724046918752,0.00249292,58529.0,58528.0,1.78475435]
[1724046918900,0.00249292,58529.0,58528.0,1.68230112]
[1724046919305,0.00249292,58529.0,58528.0,1.78472143]
[1724046920553,0.00249292,58529.0,58528.0,1.55920957]
[1724046920936,0.00249292,58529.0,58528.0,1.75893351]
[1724046921500,0.00249292,58529.0,58528.0,1.55920957]
[1724046921676,0.00249292,58529.0,58528.0,1.57620072]
[1724046921903,0.00249292,58529.0,58528.0,1.62740232]
[1724046922439,0.00249292,58529.0,58528.0,1.76790232]
[1724046925506,0.00249292,58529.0,58528.0,1.76789589]
[1724046925925,0.00249292,58529.0,58528.0,1.74959589]
[1724046926125,0.00249292,58529.0,58528.0,1.46810072]
[1724046926349,0.00249292,58529.0,58528.0,1.46410072]
[1724046926479,0.00249292,58529.0,58528.0,1.46610072]
[1724046927105,0.00249292,58529.0,58528.0,1.46810072]
[1724046927333,0.06409292,58529.0,58528.0,1.14889972]
[1724046927523,0.14029292,58529.0,58528.0,0.89973286]
[1724046929669,0.14029292,58529.0,58528.0,0.90073286]
[1724046931278,0.06409292,58529.0,58528.0,0.90073286]
[1724046931637,0.06409292,58529.0,58528.0,0.90273286]
[1724046931841,0.06409292,58529.0,58528.0,0.90073286]
[1724046932049,0.06409292,58529.0,58528.0,0.90273286]
[1724046933124,0.06409292,58529.0,58528.0,1.14193386]
[1724046933328,0.00249292,58529.0,58528.0,1.14193386]
[1724046936658,0.00249292,58529.0,58528.0,1.13893386]
[1724046936858,0.00249292,58529.0,58528.0,1.13993386]
[1724046937065,0.00249292,58529.0,58528.0,1.14193386]
[1724046937354,0.00249292,58529.0,58528.0,1.13993386]
[1724046937485,0.06349292,58529.0,58528.0,1.13993386]
[1724046937892,0.06349292,58529.0,58528.0,1.13893386]
[1724046938702,0.14389292,58529.0,58528.0,0.79973286]
[1724046944556,0.14389292,58529.0,58528.0,0.89353286]
[1724046946847,0.06349292,58529.0,58528.0,0.89353286]
[1724046947785,0.00249292,58529.0,58528.0,0.97803286]
[1724046947998,0.00249292,58529.0,58528.0,1.21723386]
[1724046948454,0.00249292,58529.0,58528.0,1.21923386]
[1724046950319,0.00249292,58529.0,58528.0,1.60966722]
[1724046953758,0.00249292,58529.0,58528.0,1.55843486]
[1724046954026,0.00249292,58529.0,58528.0,1.60966722]
[1724046954292,0.00249292,58529.0,58528.0,1.55843486]
[1724046954539,0.00249292,58529.0,58528.0,1.60966722]
[1724046959416,0.00249292,58529.0,58528.0,1.55843486]
[1724046959633,0.00249292,58529.0,58528.0,1.6352834]
[1724046959833,0.00249292,58529.0,58528.0,1.83693236]
[1724046960244,0.00249292,58529.0,58528.0,2.07613336]
[1724046960458,0.002,58529.0,58528.0,2.01358482]
[1724046960655,9.2e-07,58529.0,58528.0,2.03658482]
[1724046960881,9.2e-07,58529.0,58528.0,2.08542276]
[1724046961085,0.062,58542.0,58541.0,0.838018]
[1724046961298,0.062,58542.0,58541.0,1.10957254]
[1724046961503,0.062,58542.0,58541.0,1.20337254]
[1724046962136,0.062,58542.0,58541.0,1.20537254]
[1724046962339,0.063,58542.0,58541.0,1.11657254]
[1724046962548,0.063,58542.0,58541.0,1.21037254]
[1724046962747,0.064,58542.0,58541.0,1.22437254]
[1724046963174,0.064,58542.0,58541.0,1.22137254]
[1724046963579,0.1462,58542.0,58541.0,1.22137254]
[1724046964374,0.1462,58542.0,58541.0,1.23177683]
[1724046967276,0.14710311,58542.0,58541.0,1.23177683]
[1724046968183,0.14710311,58542.0,58541.0,1.23277683]
[1724046968811,0.06490311,58542.0,58541.0,1.23477683]
[1724046971639,0.06490311,58542.0,58541.0,1.23177683]
[1724046971817,0.06490311,58542.0,58541.0,1.23277683]
[1724046974211,0.06490311,58542.0,58541.0,1.23177683]
[1724046979680,0.06490311,58542.0,58541.0,1.23277683]
[1724046983333,0.00290311,58542.0,58541.0,1.55282483]
[1724046991425,0.00290311,58542.0,58541.0,1.54782483]
[1724046991426,0.00190311,58542.0,58541.0,1.54782483]
[1724046991823,0.00290311,58542.0,58541.0,1.56182483]
[1724046992252,0.00190311,58542.0,58541.0,1.54782483]
[1724046992583,0.00290311,58542.0,58541.0,1.56182483]
[1724046993210,0.00190311,58542.0,58541.0,1.54782483]
[1724046993419,0.00190311,58542.0,58541.0,1.61298114]
[1724046993771,0.00190311,58542.0,58541.0,1.59898114]
[1724046993989,0.00190311,58542.0,58541.0,1.61298114]
[1724046996839,0.00190311,58542.0,58541.0,2.13039635]
[1724046997034,0.00190311,58542.0,58541.0,2.00250556]
[1724046997237,0.00190311,58542.0,58541.0,2.06046123]
[1724046997639,0.00190311,58542.0,58541.0,2.00250556]
[1724046997786,0.00090311,58542.0,58541.0,2.11649423]
[1724046998248,0.00090311,58542.0,58541.0,2.13049423]
[1724046998598,0.00090311,58542.0,58541.0,1.97420556]
[1724046998782,0.00090311,58542.0,58541.0,1.96020556]
[1724046998988,0.00090311,58542.0,58541.0,2.10489224]
[1724046999187,0.00090311,58542.0,58541.0,2.13049423]
[1724046999392,0.00090311,58542.0,58541.0,2.11649423]
[1724046999594,0.00090311,58542.0,58541.0,2.13049423]
[1724047000136,0.00090311,58542.0,58541.0,2.00250556]
[1724047000317,0.00090311,58542.0,58541.0,2.13049423]
[1724047000516,0.00090311,58542.0,58541.0,1.90850653]
[1724047000717,0.00090311,58542.0,58541.0,1.74885853]
[1724047000942,0.00090311,58542.0,58541.0,1.7487458]
[1724047001145,0.00090311,58542.0,58541.0,1.7477458]
[1724047001344,0.14010311,58542.0,58541.0,1.53212091]
[1724047001510,0.14010311,58542.0,58541.0,1.48092483]
[1724047002132,0.06320311,58542.0,58541.0,1.48292483]
[1724047002337,0.06320311,58542.0,58541.0,1.53412091]
[1724047002338,0.00090311,58542.0,58541.0,1.53412091]
[1724047002623,0.00090311,58542.0,58541.0,1.74770999]
[1724047003139,0.00090311,58542.0,58541.0,1.5597121]
[1724047003345,0.00090311,58542.0,58541.0,1.7481347]
[1724047004168,0.00090311,58542.0,58541.0,1.7501347]
[1724047004378,0.00090311,58542.0,58541.0,1.91249543]
[1724047004575,0.00090311,58542.0,58541.0,2.01487337]
[1724047004978,0.00090311,58542.0,58541.0,2.0144568]
[1724047005176,0.00090311,58542.0,58541.0,1.98885431]
[1724047005376,0.00090311,58542.0,58541.0,1.9120425]
[1724047005996,0.00090311,58542.0,58541.0,2.0144568]
[1724047006255,0.06580311,58542.0,58541.0,1.5750945]
[1724047006475,0.14850311,58542.0,58541.0,1.53213898]
[1724047006618,0.14850311,58542.0,58541.0,1.48092483]
[1724047010096,0.14850311,58542.0,58541.0,1.48292483]
[1724047010097,0.06580311,58542.0,58541.0,1.48292483]
[1724047010281,0.06580311,58542.0,58541.0,1.53414062]
[1724047010672,0.06580311,58542.0,58541.0,1.53214062]
[1724047011016,0.06580311,58542.0,58541.0,1.53414062]
[1724047012269,0.06580311,58542.0,58541.0,1.53614062]
[1724047013745,0.06580311,58542.0,58541.0,1.43834062]
[1724047013964,0.14720311,58542.0,58541.0,1.53214062]
[1724047015608,0.14720311,58542.0,58541.0,1.53414062]
[1724047015848,0.06580311,58542.0,58541.0,1.55974852]
[1724047016811,0.06580311,58542.0,58541.0,1.74912865]
[1724047017049,0.06580311,58542.0,58541.0,1.48292483]
[1724047017291,0.06580311,58542.0,58541.0,1.48492483]
[1724047017714,0.06580311,58542.0,58541.0,1.56174852]
[1724047017919,0.06580311,58542.0,58541.0,1.75079881]
[1724047018139,0.06580311,58542.0,58541.0,1.74682652]
[1724047018351,0.06580311,58542.0,58541.0,1.75082652]
[1724047021007,0.06580311,58542.0,58541.0,1.67400283]
[1724047021436,0.06580311,58542.0,58541.0,1.7508488]
[1724047021638,0.06580311,58542.0,58541.0,1.5617708]
[1724047021844,0.06580311,58542.0,58541.0,1.75097605]
[1724047023755,0.06580311,58542.0,58541.0,1.74697605]
[1724047024116,0.06580311,58542.0,58541.0,1.74897605]
[1724047024746,0.06580311,58542.0,58541.0,1.75097605]
[1724047026561,0.06580311,58542.0,58541.0,1.67413008]
[1724047027132,0.00090311,58542.0,58541.0,1.67413008]
[1724047027506,0.00090311,58542.0,58541.0,1.75733008]
[1724047028011,0.00090311,58542.0,58541.0,1.81529483]
[1724047030501,0.00090311,58542.0,58541.0,1.75733008]
[1724047030927,0.00090311,58542.0,58541.0,1.75536129]
[1724047035209,0.00090311,58542.0,58541.0,1.75484939]
[1724047038150,0.00090311,58542.0,58541.0,1.81283127]
[1724047038578,0.00090311,58542.0,58541.0,1.75484939]
[1724047039470,0.00090311,58542.0,58541.0,1.99399739]
[1724047039905,0.00090311,58542.0,58541.0,1.99376415]
[1724047040271,0.00090311,58542.0,58541.0,2.05174987]
[1724047040471,0.06240421,58551.0,58550.0,1.078999]
[1724047040671,0.06240421,58551.0,58550.0,1.97445283]
[1724047041027,0.06240421,58551.0,58550.0,1.87195586]
[1724047041179,0.06240421,58551.0,58550.0,1.97445163]
[1724047041384,0.06240421,58551.0,58550.0,1.87195586]
[1724047041585,0.06240421,58551.0,58550.0,1.97119115]
[1724047041786,0.06240421,58551.0,58550.0,2.0108116]
[1724047042215,0.06240421,58551.0,58550.0,1.9968116]
[1724047042462,0.06240421,58551.0,58550.0,1.86870935]
[1724047042664,0.06240421,58551.0,58550.0,1.99917419]
[1724047042874,0.06240421,58551.0,58550.0,1.9595599]
[1724047043049,0.14220421,58551.0,58550.0,1.9555599]
[1724047043255,0.14220421,58551.0,58550.0,1.7304487]
[1724047044007,0.14220421,58551.0,58550.0,1.7024487]
[1724047044433,0.14220421,58551.0,58550.0,1.45635354]
[1724047044835,0.14220421,58551.0,58550.0,1.44235354]
[1724047045192,0.14220421,58551.0,58550.0,1.45635354]
[1724047045397,0.14220421,58551.0,58550.0,1.47035354]
[1724047045807,0.14220421,58551.0,58550.0,1.45635354]
[1724047046034,0.14220421,58551.0,58550.0,1.47035354]
[1724047048562,0.14220421,58551.0,58550.0,1.48055026]
[1724047049388,0.14220421,58551.0,58550.0,1.47955026]
[1724047049616,0.14220421,58551.0,58550.0,1.24043926]
[1724047050785,0.14220421,58551.0,58550.0,1.22643926]
[1724047051047,0.14220421,58551.0,58550.0,1.24043926]
[1724047051906,0.14220421,58551.0,58550.0,1.22643926]
[1724047052307,0.14220421,58551.0,58550.0,1.24043926]
[1724047052506,0.14220421,58551.0,58550.0,1.14663926]
[1724047052687,0.14220421,58551.0,58550.0,1.24043926]
[1724047054075,0.14220421,58551.0,58550.0,1.24143926]
[1724047054276,0.14220421,58551.0,58550.0,1.24343926]
[1724047056009,0.00090421,58553.0,58552.0,0.83786]
[1724047056217,0.00090421,58562.0,58561.0,0.773165]
[1724047056406,0.00090421,58562.0,58561.0,1.52285154]
[1724047056609,0.00090421,58562.0,58561.0,1.99904415]
[1724047057370,0.00090421,58562.0,58561.0,1.94162215]
[1724047057564,0.00090421,58562.0,58561.0,2.15247296]
[1724047057783,0.00090421,58568.0,58567.0,1.317731]
[1724047057998,0.00090421,58568.0,58567.0,1.90424928]
[1724047058654,0.00090421,58568.0,58567.0,2.04434928]
[1724047058868,0.00090421,58568.0,58567.0,2.04634928]
[1724047059089,0.00090421,58568.0,58567.0,2.23886693]
[1724047059325,0.00090421,58568.0,58567.0,2.25627036]
[1724047059530,0.00090421,58568.0,58567.0,2.17965012]
[1724047059942,0.00090421,58568.0,58567.0,2.28186777]
[1724047060386,0.00090421,58568.0,58567.0,2.2562321]
[1724047060795,0.00090421,58568.0,58567.0,2.2702321]
[1724047061216,0.00090421,58568.0,58567.0,2.2422321]
[1724047061418,0.00090421,58568.0,58567.0,1.96651918]
[1724047061638,0.00090421,58568.0,58567.0,1.98051918]
[1724047062478,0.00090421,58568.0,58567.0,1.92948554]
[1724047063753,0.00090421,58568.0,58567.0,1.93946746]
[1724047064911,0.00090421,58572.0,58571.0,0.138813]
[1724047064912,8.4e-07,58572.0,58571.0,0.138813]
[1724047065125,8.4e-07,58572.0,58571.0,0.89183313]
[1724047065332,8.4e-07,58572.0,58571.0,1.44636561]
[1724047065570,8.4e-07,58572.0,58571.0,2.13843541]
[1724047065905,8.4e-07,58572.0,58571.0,2.06195493]
[1724047066515,8.4e-07,58572.0,58571.0,1.84793713]
[1724047066944,8.4e-07,58572.0,58571.0,2.13728326]
[1724047067147,8.4e-07,58572.0,58571.0,1.89887124]
[1724047067356,8.4e-07,58572.0,58571.0,1.86193713]
[1724047068206,8.4e-07,58572.0,58571.0,1.87593713]
[1724047068413,8.4e-07,58572.0,58571.0,1.62261113]
[1724047068613,8.4e-07,58572.0,58571.0,1.60861113]
[1724047068844,8.4e-07,58572.0,58571.0,1.62261113]
[1724047069049,8.4e-07,58572.0,58571.0,1.69100113]
[1724047069251,8.4e-07,58572.0,58571.0,1.67700113]
[1724047069461,0.14110084,58572.0,58571.0,1.43456154]
[1724047070325,0.14110084,58572.0,58571.0,1.44856154]
[1724047070949,0.06610084,58572.0,58571.0,1.43456154]
[1724047071419,8.4e-07,58572.0,58571.0,1.44856154]
[1724047081258,8.4e-07,58572.0,58571.0,1.68758754]
[1724047081628,8.4e-07,58572.0,58571.0,1.76768754]
[1724047083501,8.4e-07,58572.0,58571.0,1.68758754]
[1724047086662,0.06220084,58572.0,58571.0,1.34456154]
[1724047086883,0.06220084,58572.0,58571.0,1.27817154]
[1724047087273,0.06220084,58572.0,58571.0,1.34656854]
[1724047087450,0.06220084,58572.0,58571.0,1.34856854]
[1724047087682,0.06220084,58572.0,58571.0,1.33456854]
[1724047087880,0.06220084,58572.0,58571.0,1.33538954]
[1724047088081,0.06220084,58572.0,58571.0,1.34938954]
[1724047088612,0.06220084,58572.0,58571.0,1.43538954]
[1724047088814,0.06220084,58572.0,58571.0,1.44938954]
[1724047097226,0.13790084,58572.0,58571.0,1.44538954]
[1724047097632,0.13790084,58572.0,58571.0,1.44938954]
[1724047100317,0.13790084,58572.0,58571.0,1.746242]
[1724047101343,0.13790084,58572.0,58571.0,1.66970822]
[1724047102960,0.13790084,58572.0,58571.0,1.66570822]
[1724047103983,0.13790084,58572.0,58571.0,1.59731122]
[1724047104397,0.13790084,58572.0,58571.0,1.66570922]
[1724047104874,0.13790084,58572.0,58571.0,1.59731122]
[1724047105227,0.13790084,58572.0,58571.0,1.66570922]
[1724047105605,0.13790084,58572.0,58571.0,1.59731122]
[1724047105815,0.13790084,58572.0,58571.0,1.66570922]
[1724047106008,0.13790084,58572.0,58571.0,1.66770922]
[1724047106209,0.13790084,58572.0,58571.0,1.59931122]
[1724047106610,0.13790084,58572.0,58571.0,1.66823377]
[1724047107020,0.13790084,58572.0,58571.0,1.59983577]
[1724047107222,0.13790084,58572.0,58571.0,1.66823377]
[1724047108385,0.13790084,58572.0,58571.0,1.67023377]
[1724047108588,0.06220084,58572.0,58571.0,1.67023377]
[1724047109660,8.4e-07,58572.0,58571.0,1.67023377]
[1724047109868,8.4e-07,58572.0,58571.0,1.72768741]
[1724047110319,8.4e-07,58572.0,58571.0,1.96671341]
[1724047111133,8.4e-07,58572.0,58571.0,1.967087]
[1724047111604,8.4e-07,58572.0,58571.0,2.080787]
[1724047112441,8.4e-07,58572.0,58571.0,2.066487]
[1724047112651,8.4e-07,58572.0,58571.0,2.300387]
[1724047112860,8.4e-07,58572.0,58571.0,1.88174184]
[1724047112861,0.06290084,58572.0,58571.0,1.88174184]
[1724047113269,0.06290084,58572.0,58571.0,2.11564184]
[1724047114286,0.06290084,58572.0,58571.0,1.961961]
[1724047114900,0.06290084,58572.0,58571.0,1.959961]
[1724047115319,0.14110084,58572.0,58571.0,1.959961]
[1724047116262,0.14110084,58572.0,58571.0,2.11170327]
[1724047116604,0.14110084,58572.0,58571.0,2.11570327]
[1724047117799,0.14110084,58572.0,58571.0,2.11370327]
[1724047119239,0.14110084,58572.0,58571.0,2.11170327]
[1724047119443,0.14110084,58572.0,58571.0,1.957961]
[1724047122579,0.14110084,58572.0,58571.0,1.817661]
[1724047124687,0.14110084,58572.0,58571.0,1.76013519]
[1724047125046,0.14110084,58572.0,58571.0,1.35811119]
[1724047125247,0.14110084,58572.0,58571.0,1.55422121]
[1724047125672,0.14110084,58572.0,58571.0,1.57984465]
[1724047125874,0.14110084,58572.0,58571.0,1.5542088]
[1724047126099,0.14110084,58572.0,58571.0,1.5402088]
[1724047126686,0.14110084,58572.0,58571.0,1.5542088]
[1724047126887,0.14110084,58572.0,58571.0,1.5262088]
[1724047127112,0.14110084,58572.0,58571.0,1.42371119]
[1724047127514,0.14110084,58572.0,58571.0,1.45171119]
[1724047127687,0.14110084,58572.0,58571.0,1.5285711]
[1724047128271,0.14110084,58572.0,58571.0,1.30742645]
[1724047128586,0.14110084,58572.0,58571.0,1.23056654]
[1724047131685,0.14110084,58572.0,58571.0,1.2817951]
[1724047132078,0.14110084,58572.0,58571.0,0.726386]
[1724047132868,0.14110084,58572.0,58571.0,0.819986]
[1724047133073,0.14110084,58572.0,58571.0,0.805986]
[1724047133285,0.14110084,58572.0,58571.0,0.791986]
[1724047133449,0.14110084,58572.0,58571.0,0.805986]
[1724047133655,0.14110084,58572.0,58571.0,0.819986]
[1724047140621,0.14110084,58572.0,58571.0,1.23056654]
[1724047145555,0.06290084,58572.0,58571.0,1.47059254]
[1724047145732,0.06290084,58572.0,58571.0,1.47259254]
[1724047145930,0.06290084,58572.0,58571.0,1.47209254]
[1724047146134,8.4e-07,58572.0,58571.0,1.56789254]
[1724047146363,8.4e-07,58572.0,58571.0,1.55559254]
[1724047146788,8.4e-07,58572.0,58571.0,1.85355181]
[1724047148081,8.4e-07,58572.0,58571.0,1.63235984]
[1724047148507,8.4e-07,58572.0,58571.0,1.85357384]
[1724047148708,8.4e-07,58572.0,58571.0,1.63235984]
[1724047149144,8.4e-07,58572.0,58571.0,1.85356973]
[1724047150344,8.4e-07,58572.0,58571.0,1.85359581]
[1724047151145,8.4e-07,58572.0,58571.0,1.84959581]
[1724047151929,8.4e-07,58572.0,58571.0,1.62835608]
[1724047152389,8.4e-07,58572.0,58571.0,1.85165671]
[1724047152594,8.4e-07,58572.0,58571.0,1.60477004]
[1724047152792,8.4e-07,58572.0,58571.0,1.60277004]
[1724047153031,8.4e-07,58572.0,58571.0,1.60677004]
[1724047154844,8.4e-07,58572.0,58571.0,1.55559254]
[1724047155094,8.4e-07,58572.0,58571.0,1.77680159]
[1724047155265,8.4e-07,58572.0,58571.0,1.85356605]
[1724047155565,8.4e-07,58572.0,58571.0,1.85356737]
[1724047155790,8.4e-07,58572.0,58571.0,1.77680159]
[1724047156309,8.4e-07,58572.0,58571.0,1.85356715]
[1724047156525,8.4e-07,58572.0,58571.0,1.77680159]
[1724047158509,8.4e-07,58572.0,58571.0,1.87915418]
[1724047158958,8.4e-07,58572.0,58571.0,1.94755218]
[1724047161161,8.4e-07,58572.0,58571.0,1.84552313]
[1724047161364,8.4e-07,58572.0,58571.0,1.94791741]
[1724047161798,8.4e-07,58572.0,58571.0,1.62399054]
[1724047161994,8.4e-07,58572.0,58571.0,1.94785693]
[1724047162886,0.06420084,58572.0,58571.0,1.77275693]
[1724047163101,0.06420084,58572.0,58571.0,1.86635693]
[1724047163302,0.06420084,58572.0,58571.0,1.79795893]
[1724047163730,0.06420084,58572.0,58571.0,1.7723678]
[1724047163957,8.4e-07,58572.0,58571.0,1.69555826]
[1724047164174,8.4e-07,58572.0,58571.0,1.77236643]
[1724047164432,8.4e-07,58572.0,58571.0,1.69617563]
[1724047164622,8.4e-07,58572.0,58571.0,1.79858689]
[1724047165248,8.4e-07,58572.0,58571.0,1.69617563]
[1724047165899,8.4e-07,58572.0,58571.0,1.79858689]
[1724047166105,8.4e-07,58572.0,58571.0,1.69617563]
[1724047166738,8.4e-07,58572.0,58571.0,1.79858689]
[1724047166975,8.4e-07,58572.0,58571.0,1.69617563]
[1724047167193,8.4e-07,58572.0,58571.0,1.79858689]
[1724047168762,8.4e-07,58572.0,58571.0,1.69617563]
[1724047169316,8.4e-07,58572.0,58571.0,1.79861015]
[1724047170051,8.4e-07,58572.0,58571.0,1.69617563]
[1724047170255,8.4e-07,58572.0,58571.0,1.79861764]
[1724047170457,8.4e-07,58572.0,58571.0,1.79861744]
[1724047170675,8.4e-07,58572.0,58571.0,1.798623]
[1724047171312,8.4e-07,58572.0,58571.0,1.794623]
[1724047171498,8.4e-07,58572.0,58571.0,1.76901368]
[1724047171499,0.14520084,58572.0,58571.0,1.76901368]
[1724047171791,0.14520084,58572.0,58571.0,1.77101368]
[1724047172388,0.14520084,58572.0,58571.0,1.77301368]
[1724047173273,0.14520084,58572.0,58571.0,1.77101368]
[1724047174630,0.14520084,58572.0,58571.0,1.76901368]
[1724047174839,0.14520084,58572.0,58571.0,1.77101368]
[1724047175468,0.14520084,58572.0,58571.0,1.76901368]
[1724047175669,0.14520084,58572.0,58571.0,1.47009254]
[1724047176149,0.06520084,58572.0,58571.0,1.47009254]
[1724047176723,0.06520084,58572.0,58571.0,1.52131992]
[1724047176929,0.06520084,58572.0,58571.0,1.47009254]
[1724047177668,0.06520084,58572.0,58571.0,1.47209254]
[1724047178098,0.14250084,58572.0,58571.0,1.5203201]
[1724047178427,0.14250084,58572.0,58571.0,1.5213201]
[1724047178629,0.14250084,58572.0,58571.0,1.5233201]
[1724047179038,0.06520084,58572.0,58571.0,1.5243201]
[1724047179237,0.06520084,58572.0,58571.0,1.47409254]
[1724047179514,0.06520084,58572.0,58571.0,1.55093382]
[1724047180482,0.06520084,58572.0,58571.0,1.79943271]
[1724047180673,0.06520084,58572.0,58571.0,1.69697766]
[1724047180874,0.06520084,58572.0,58571.0,1.79943271]
[1724047181075,0.06520084,58572.0,58571.0,1.69697766]
[1724047181598,0.06520084,58572.0,58571.0,1.79943271]
[1724047181804,0.06520084,58572.0,58571.0,1.69697766]
[1724047182007,0.06520084,58572.0,58571.0,1.79943271]
[1724047182464,0.06520084,58572.0,58571.0,1.69697766]
[1724047182620,0.06520084,58572.0,58571.0,1.69729107]
[1724047182775,0.06520084,58572.0,58571.0,1.79976231]
[1724047183210,0.06520084,58572.0,58571.0,1.69329107]
[1724047183457,0.06520084,58572.0,58571.0,1.77014534]
[1724047183680,0.06520084,58572.0,58571.0,1.77014914]
[1724047184732,0.06520084,58572.0,58571.0,1.69329107]
[1724047185614,0.06520084,58572.0,58571.0,1.77015418]
[1724047186706,0.06520084,58572.0,58571.0,1.76915418]
[1724047187054,0.06520084,58572.0,58571.0,1.77014887]
[1724047187632,0.06520084,58572.0,58571.0,1.77114887]
[1724047188606,0.06520084,58572.0,58571.0,1.77014887]
[1724047189269,0.06520084,58572.0,58571.0,1.77114887]
[1724047189481,0.06520084,58572.0,58571.0,1.77014887]
[1724047189875,0.14590084,58572.0,58571.0,1.77014887]
[1724047190501,0.14590084,58572.0,58571.0,1.77016361]
[1724047191403,0.14590084,58572.0,58571.0,1.69328212]
[1724047192563,0.14590084,58572.0,58571.0,1.46909254]
[1724047192767,0.14590084,58572.0,58571.0,1.54597702]
[1724047194095,0.14590084,58572.0,58571.0,1.54697702]
[1724047194293,0.14590084,58572.0,58571.0,1.54897702]
[1724047195755,0.06520084,58572.0,58571.0,1.54897702]
[1724047196295,0.06520084,58572.0,58571.0,1.54897413]
[1724047196795,0.06520084,58572.0,58571.0,1.77401894]
[1724047198013,0.06520084,58572.0,58571.0,1.77501894]
[1724047198214,0.06520084,58572.0,58571.0,1.77601894]
[1724047198215,8.4e-07,58572.0,58571.0,1.77601894]
[1724047198441,8.4e-07,58572.0,58571.0,2.01504494]
[1724047198638,8.4e-07,58572.0,58571.0,1.93816335]
[1724047199219,8.4e-07,58572.0,58571.0,2.04067213]
[1724047201100,8.4e-07,58572.0,58571.0,1.93716335]
[1724047201295,8.4e-07,58572.0,58571.0,1.93816335]
[1724047202615,0.0602,58576.0,58571.0,1.93816335]
[1724047202616,0.0602,58576.0,58575.0,1.07654]
[1724047202905,0.0602,58576.0,58575.0,1.64361525]
[1724047203484,0.0831,58581.0,58580.0,1.07545]
[1724047203684,0.082,58587.0,58586.0,0.119482]
[1724047203889,0.082,58587.0,58586.0,0.86256454]
[1724047204261,0.147,58587.0,58586.0,0.86256454]
[1724047204798,0.147,58587.0,58586.0,1.10152854]
[1724047205611,0.147,58587.0,58586.0,1.11552854]
[1724047206023,0.147,58587.0,58586.0,1.12952854]
[1724047206423,0.147,58587.0,58586.0,1.11552854]
[1724047206653,0.147,58587.0,58586.0,1.10152854]
[1724047206858,0.147,58587.0,58586.0,1.11552854]
[1724047208074,0.147,58587.0,58586.0,1.03592854]
[1724047208279,0.147,58587.0,58586.0,0.59741]
[1724047208491,0.147,58587.0,58586.0,0.358446]
[1724047208695,0.147,58587.0,58586.0,0.147482]
[1724047209299,0.147,58587.0,58586.0,0.386446]
[1724047212762,0.147,58587.0,58586.0,0.147482]
[1724047212915,0.147,58587.0,58586.0,0.386446]